[Event "Tournoi de MI Clichy 92 2022"]
[Site "Clichy, France"]
[Date "2022.02.21"]
[Round "2.1"]
[White "Petrov, Martin"]
[Black "Valles Moreno, Ivan"]
[Result "1/2-1/2"]
[TimeControl "1H40 40 moves plus 30 minutes + 30 seconds from move one"]
[WhiteElo "2547"]
[BlackElo "2393"]

1. e4 {[%clk 01:27:19]} {[%emt 00:03:40]} c5 {[%clk 01:27:29]} {[%emt
00:03:31]} 2. Nf3 {[%clk 01:27:42]} {[%emt 00:00:07]} d6 {[%clk 01:27:54]}
{[%emt 00:00:05]} 3. d4 {[%clk 01:28:09]} {[%emt 00:00:04]} cxd4 {[%clk
01:28:16]} {[%emt 00:00:07]} 4. Nxd4 {[%clk 01:28:36]} {[%emt 00:00:03]} Nf6
{[%clk 01:28:36]} {[%emt 00:00:09]} 5. Nc3 {[%clk 01:29:01]} {[%emt 00:00:05]}
Nc6 {[%clk 01:29:01]} {[%emt 00:00:05]} 6. f3 {[%clk 01:25:18]} {[%emt
00:04:14]} e5 {[%clk 01:24:09]} {[%emt 00:05:20]} 7. Nb3 {[%clk 01:25:42]}
{[%emt 00:00:06]} Be7 {[%clk 01:22:16]} {[%emt 00:02:23]} 8. Be3 {[%clk
01:25:57]} {[%emt 00:00:16]} O-O {[%clk 01:15:26]} {[%emt 00:07:19]} 9. Qd2
{[%clk 01:25:30]} {[%emt 00:00:58]} Be6 {[%clk 01:10:02]} {[%emt 00:05:52]} 10.
Nd5 {[%clk 01:23:07]} {[%emt 00:02:54]} Nd7 {[%clk 00:42:47]} {[%emt 00:27:45]}
11. O-O-O {[%clk 01:08:32]} {[%emt 00:15:05]} a5 {[%clk 00:33:53]} {[%emt
00:09:25]} 12. Nxe7+ {[%clk 01:08:20]} {[%emt 00:00:42]} Qxe7 {[%clk 00:29:36]}
{[%emt 00:04:46]} 13. Qxd6 {[%clk 01:08:46]} {[%emt 00:00:05]} Qf6 {[%clk
00:29:50]} {[%emt 00:00:15]} 14. Bb5 {[%clk 00:56:26]} {[%emt 00:12:51]} Rfc8
{[%clk 00:25:25]} {[%emt 00:04:54]} 15. Kb1 {[%clk 00:53:02]} {[%emt 00:03:55]}
a4 {[%clk 00:22:42]} {[%emt 00:03:13]} 16. Nc1 {[%clk 00:50:21]} {[%emt
00:03:11]} Nd4 {[%clk 00:07:37]} {[%emt 00:15:35]} 17. Bxd4 {[%clk 00:44:48]}
{[%emt 00:06:04]} Bxa2+ {[%clk 00:07:54]} {[%emt 00:00:13]} 18. Nxa2 {[%clk
00:45:13]} {[%emt 00:00:05]} Qxd6 {[%clk 00:08:18]} {[%emt 00:00:06]} 19. Bc3
{[%clk 00:45:39]} {[%emt 00:00:04]} Qb6 {[%clk 00:07:23]} {[%emt 00:01:26]} 20.
Bxd7 {[%clk 00:46:03]} {[%emt 00:00:06]} Rxc3 {[%clk 00:01:42]} {[%emt
00:06:10]} 21. Nxc3 {[%clk 00:46:29]} {[%emt 00:00:04]} a3 {[%clk 00:02:03]}
{[%emt 00:00:10]} 22. b3 {[%clk 00:44:30]} {[%emt 00:02:29]} a2+ {[%clk
00:01:43]} {[%emt 00:00:49]} 23. Kb2 {[%clk 00:43:15]} {[%emt 00:01:45]} Qa7
{[%clk 00:01:01]} {[%emt 00:01:12]} 24. Ba4 {[%clk 00:39:57]} {[%emt 00:03:48]}
Qf2 {[%clk 00:00:52]} {[%emt 00:00:38]} 25. Rd3 {[%clk 00:38:01]} {[%emt
00:02:26]} h5 {[%clk 00:00:42]} {[%emt 00:00:40]} 26. Rhd1 {[%clk 00:22:20]}
{[%emt 00:16:12]} a1=Q+ {[%clk 00:00:38]} {[%emt 00:00:34]} 27. Rxa1 {[%clk
00:21:04]} {[%emt 00:01:46]} Qxg2 {[%clk 00:01:02]} {[%emt 00:00:06]} 28. h4
{[%clk 00:21:31]} {[%emt 00:00:03]} Qf2 {[%clk 00:01:09]} {[%emt 00:00:22]} 29.
Rh1 {[%clk 00:21:17]} {[%emt 00:00:45]} Ra6 {[%clk 00:00:44]} {[%emt 00:00:55]}
30. Bb5 {[%clk 00:12:14]} {[%emt 00:09:33]} Rg6 {[%clk 00:00:58]} {[%emt
00:00:16]} 31. Rd8+ {[%clk 00:06:47]} {[%emt 00:05:57]} Kh7 {[%clk 00:01:21]}
{[%emt 00:00:06]} 32. Bd3 {[%clk 00:07:13]} {[%emt 00:00:04]} Rg3 {[%clk
00:01:00]} {[%emt 00:00:52]} 33. Rf1 {[%clk 00:04:10]} {[%emt 00:03:33]} Qh2
{[%clk 00:01:16]} {[%emt 00:00:13]} 34. Rd7 {[%clk 00:04:35]} {[%emt 00:00:06]}
f6 {[%clk 00:01:03]} {[%emt 00:00:43]} 35. Rxb7 {[%clk 00:03:43]} {[%emt
00:01:22]} Qxh4 {[%clk 00:01:21]} {[%emt 00:00:11]} 36. Nd5 {[%clk 00:04:07]}
{[%emt 00:00:07]} Kh6 {[%clk 00:01:03]} {[%emt 00:00:49]} 37. Ne7 {[%clk
00:02:46]} {[%emt 00:01:51]} g6 {[%clk 00:01:30]} {[%emt 00:00:02]} 38. Rb6
{[%clk 00:03:13]} {[%emt 00:00:03]} Kg7 {[%clk 00:01:19]} {[%emt 00:00:40]} 39.
Nd5 {[%clk 00:02:46]} {[%emt 00:00:57]} Rh3 {[%clk 00:01:10]} {[%emt 00:00:39]}
40. Rxf6 {[%clk 00:01:26]} {[%emt 00:01:51]} Rh1 {[%clk 00:01:32]} {[%emt
00:00:08]} 41. b4 {[%clk 00:15:18]} {[%emt 00:16:39]} Rxf1 {[%clk 00:31:36]}
{[%emt 00:00:24]} 42. Bxf1 {[%clk 00:15:46]} {[%emt 00:00:03]} Qh1 {[%clk
00:31:50]} {[%emt 00:00:15]} 43. Bb5 {[%clk 00:13:29]} {[%emt 00:02:47]} h4
{[%clk 00:23:21]} {[%emt 00:08:59]} 44. Bd7 {[%clk 00:12:43]} {[%emt 00:01:16]}
h3 {[%clk 00:21:14]} {[%emt 00:02:37]} 45. Bxh3 {[%clk 00:13:03]} {[%emt
00:00:10]} Qxh3 {[%clk 00:21:38]} {[%emt 00:00:06]} 46. c3 {[%clk 00:12:56]}
{[%emt 00:00:39]} Qf1 {[%clk 00:17:37]} {[%emt 00:04:31]} 47. Ka3 {[%clk
00:08:22]} {[%emt 00:05:05]} Qd3 {[%clk 00:15:07]} {[%emt 00:02:59]} 48. Ka4
{[%clk 00:07:48]} {[%emt 00:01:04]} g5 {[%clk 00:13:39]} {[%emt 00:01:57]} 49.
Rf5 {[%clk 00:03:26]} {[%emt 00:04:53]} g4 {[%clk 00:12:27]} {[%emt 00:01:41]}
50. Rg5+ {[%clk 00:02:32]} {[%emt 00:01:25]} Kh6 {[%clk 00:11:17]} {[%emt
00:01:40]} 51. Rxg4 {[%clk 00:01:33]} {[%emt 00:01:29]} Qxf3 {[%clk 00:11:37]}
{[%emt 00:00:10]} 52. Rg8 {[%clk 00:01:50]} {[%emt 00:00:13]} Qxe4 {[%clk
00:10:57]} {[%emt 00:01:10]} 53. Rd8 {[%clk 00:02:17]} {[%emt 00:00:03]} Qc4
{[%clk 00:07:48]} {[%emt 00:03:38]} 54. Ka5 {[%clk 00:02:29]} {[%emt 00:00:18]}
e4 {[%clk 00:07:57]} {[%emt 00:00:20]} 55. Kb6 {[%clk 00:02:12]} {[%emt
00:00:49]} Qd3 {[%clk 00:05:55]} {[%emt 00:02:31]} 56. Rd6 {[%clk 00:01:10]}
{[%emt 00:01:32]} Kg5 {[%clk 00:05:54]} {[%emt 00:00:31]} 57. Rc6 {[%clk
00:00:45]} {[%emt 00:00:55]} e3 {[%clk 00:04:59]} {[%emt 00:01:24]} 58. Nxe3
{[%clk 00:01:09]} {[%emt 00:00:06]} Qxe3+ {[%clk 00:05:22]} {[%emt 00:00:07]}
59. Ka6 {[%clk 00:01:20]} {[%emt 00:00:18]} Qd3+ {[%clk 00:03:48]} {[%emt
00:02:05]} 60. b5 {[%clk 00:01:45]} {[%emt 00:00:05]} Qd7 {[%clk 00:02:23]}
{[%emt 00:01:55]} 61. c4 {[%clk 00:01:46]} {[%emt 00:00:30]} Kf4 {[%clk
00:02:34]} {[%emt 00:00:19]} 62. c5 {[%clk 00:01:25]} {[%emt 00:00:51]} Ke5
{[%clk 00:02:25]} {[%emt 00:00:38]} 63. Rd6 {[%clk 00:01:51]} {[%emt 00:00:06]}
Qc8+ {[%clk 00:02:34]} {[%emt 00:00:21]} 64. Kb6 {[%clk 00:02:16]} {[%emt
00:00:05]} Qb8+ {[%clk 00:02:41]} {[%emt 00:00:23]} 65. Kc6 {[%clk 00:01:41]}
{[%emt 00:01:05]} Qc8+ {[%clk 00:03:06]} {[%emt 00:00:05]} 66. Kb6 {[%clk
00:02:09]} {[%emt 00:00:03]} Qb8+ {[%clk 00:03:25]} {[%emt 00:00:11]} 67. Ka5
{[%clk 00:02:08]} {[%emt 00:00:31]} 1/2-1/2

[Event "Tournoi de MI Clichy 92 2022"]
[Site "Clichy, France"]
[Date "2022.02.21"]
[Round "2.4"]
[White "Degardin, Sylvain"]
[Black "Mekhane, Adam"]
[Result "1-0"]
[TimeControl "1H40 40 moves plus 30 minutes + 30 seconds from move one"]
[WhiteElo "2288"]
[BlackElo "2316"]

1. e4 {[%clk 01:30:48]} {[%emt 00:00:09]} c5 {[%clk 01:30:44]} {[%emt
00:00:17]} 2. Nf3 {[%clk 01:30:51]} {[%emt 00:00:26]} Nc6 {[%clk 01:31:08]}
{[%emt 00:00:08]} 3. Bb5 {[%clk 01:30:55]} {[%emt 00:00:25]} e6 {[%clk
01:31:15]} {[%emt 00:00:24]} 4. O-O {[%clk 01:30:48]} {[%emt 00:00:36]} Nge7
{[%clk 01:31:34]} {[%emt 00:00:11]} 5. d4 {[%clk 01:30:44]} {[%emt 00:00:33]}
cxd4 {[%clk 01:31:47]} {[%emt 00:00:19]} 6. Nxd4 {[%clk 01:30:58]} {[%emt
00:00:16]} Qb6 {[%clk 01:32:08]} {[%emt 00:00:09]} 7. Nxc6 {[%clk 01:30:19]}
{[%emt 00:01:08]} bxc6 {[%clk 01:32:32]} {[%emt 00:00:06]} 8. Be2 {[%clk
01:29:52]} {[%emt 00:00:56]} Ng6 {[%clk 01:32:01]} {[%emt 00:01:02]} 9. c4
{[%clk 01:28:28]} {[%emt 00:01:53]} Be7 {[%clk 01:31:54]} {[%emt 00:00:39]} 10.
Nc3 {[%clk 01:27:07]} {[%emt 00:01:50]} O-O {[%clk 01:30:46]} {[%emt 00:01:38]}
11. Qc2 {[%clk 01:21:59]} {[%emt 00:05:38]} c5 {[%clk 01:29:09]} {[%emt
00:02:08]} 12. Be3 {[%clk 01:18:20]} {[%emt 00:04:08]} Bb7 {[%clk 01:18:28]}
{[%emt 00:11:12]} 13. Rad1 {[%clk 01:14:56]} {[%emt 00:03:53]} Qc7 {[%clk
01:16:48]} {[%emt 00:02:10]} 14. f4 {[%clk 01:09:44]} {[%emt 00:05:41]} d6
{[%clk 01:04:56]} {[%emt 00:12:24]} 15. g3 {[%clk 01:06:38]} {[%emt 00:03:34]}
Bc6 {[%clk 01:00:39]} {[%emt 00:04:48]} 16. h4 {[%clk 01:02:51]} {[%emt
00:04:15]} h6 {[%clk 00:49:33]} {[%emt 00:11:37]} 17. h5 {[%clk 00:57:51]}
{[%emt 00:05:29]} Nh8 {[%clk 00:48:27]} {[%emt 00:01:37]} 18. Bd3 {[%clk
00:38:20]} {[%emt 00:20:00]} f6 {[%clk 00:28:03]} {[%emt 00:20:55]} 19. Qe2
{[%clk 00:28:54]} {[%emt 00:09:55]} Nf7 {[%clk 00:23:14]} {[%emt 00:05:21]} 20.
Bb1 {[%clk 00:26:53]} {[%emt 00:02:30]} Rab8 {[%clk 00:19:37]} {[%emt
00:04:09]} 21. Rf2 {[%clk 00:21:08]} {[%emt 00:06:15]} Rb6 {[%clk 00:13:08]}
{[%emt 00:07:00]} 22. Qd3 {[%clk 00:13:39]} {[%emt 00:07:57]} Rfb8 {[%clk
00:10:48]} {[%emt 00:02:51]} 23. Bc1 {[%clk 00:13:25]} {[%emt 00:00:44]} Qc8
{[%clk 00:09:13]} {[%emt 00:02:06]} 24. Re1 {[%clk 00:11:07]} {[%emt 00:02:47]}
Ba8 {[%clk 00:08:16]} {[%emt 00:01:28]} 25. Nd5 {[%clk 00:05:11]} {[%emt
00:06:25]} exd5 {[%clk 00:04:58]} {[%emt 00:03:48]} 26. exd5 {[%clk 00:05:26]}
{[%emt 00:00:15]} Kf8 {[%clk 00:05:14]} {[%emt 00:00:15]} 27. Qg6 {[%clk
00:04:57]} {[%emt 00:00:58]} Qe8 {[%clk 00:04:31]} {[%emt 00:01:14]} 28. Rfe2
{[%clk 00:04:17]} {[%emt 00:01:10]} R6b7 {[%clk 00:04:15]} {[%emt 00:00:47]} 29.
Qh7 {[%clk 00:03:28]} {[%emt 00:01:17]} Rc7 {[%clk 00:02:52]} {[%emt 00:01:54]}
30. Bf5 {[%clk 00:03:01]} {[%emt 00:00:56]} Bb7 {[%clk 00:02:21]} {[%emt
00:01:01]} 31. Be6 {[%clk 00:03:00]} {[%emt 00:00:30]} Bc8 {[%clk 00:02:12]}
{[%emt 00:00:40]} 32. f5 {[%clk 00:02:56]} {[%emt 00:00:34]} Rbb7 {[%clk
00:00:50]} {[%emt 00:01:52]} 33. Re4 {[%clk 00:03:09]} {[%emt 00:00:17]} Bxe6
{[%clk 00:00:59]} {[%emt 00:00:21]} 34. dxe6 {[%clk 00:02:03]} {[%emt
00:01:36]} Qb8 {[%clk 00:00:31]} {[%emt 00:00:58]} 35. Rg4 {[%clk 00:01:12]}
{[%emt 00:01:20]} Ke8 {[%clk 00:00:56]} {[%emt 00:00:05]} 36. Qg8+ {[%clk
00:00:54]} {[%emt 00:00:48]} Bf8 {[%clk 00:01:24]} {[%emt 00:00:02]} 37. exf7+
{[%clk 00:01:02]} {[%emt 00:00:23]} Kd7 {[%clk 00:01:46]} {[%emt 00:00:08]} 38.
Re8 {[%clk 00:01:17]} {[%emt 00:00:14]} Rc8 {[%clk 00:01:16]} {[%emt 00:01:01]}
39. Qxf8 {[%clk 00:01:30]} {[%emt 00:00:18]} 1-0

[Event "Tournoi de MI Clichy 92 2022"]
[Site "Clichy, France"]
[Date "2022.02.21"]
[Round "2.3"]
[White "Onkoud, Abdelaziz"]
[Black "Sorbe, Stephane"]
[Result "0-1"]
[TimeControl "1H40 40 moves plus 30 minutes + 30 seconds from move one"]
[WhiteElo "2317"]
[BlackElo "2326"]

1. g3 {[%clk 01:24:03]} {[%emt 00:06:55]} d5 {[%clk 01:30:45]} {[%emt
00:00:16]} 2. Bg2 {[%clk 01:24:00]} {[%emt 00:00:32]} c6 {[%clk 01:30:54]}
{[%emt 00:00:22]} 3. d3 {[%clk 01:23:42]} {[%emt 00:00:47]} Nf6 {[%clk
01:30:25]} {[%emt 00:00:59]} 4. Nd2 {[%clk 01:23:16]} {[%emt 00:00:56]} Bg4
{[%clk 01:26:45]} {[%emt 00:04:10]} 5. h3 {[%clk 01:22:45]} {[%emt 00:01:00]}
Bh5 {[%clk 01:27:02]} {[%emt 00:00:14]} 6. Ngf3 {[%clk 01:20:22]} {[%emt
00:02:52]} Nbd7 {[%clk 01:27:05]} {[%emt 00:00:27]} 7. O-O {[%clk 01:20:04]}
{[%emt 00:00:48]} e6 {[%clk 01:24:23]} {[%emt 00:03:12]} 8. e4 {[%clk
01:18:17]} {[%emt 00:02:16]} Be7 {[%clk 01:22:03]} {[%emt 00:02:51]} 9. Qe2
{[%clk 01:17:02]} {[%emt 00:01:45]} O-O {[%clk 01:16:18]} {[%emt 00:06:14]} 10.
g4 {[%clk 01:10:42]} {[%emt 00:06:51]} Bg6 {[%clk 01:16:39]} {[%emt 00:00:09]}
11. Nh4 {[%clk 01:10:57]} {[%emt 00:00:15]} dxe4 {[%clk 01:11:24]} {[%emt
00:05:45]} 12. Nxg6 {[%clk 01:09:16]} {[%emt 00:02:10]} hxg6 {[%clk 01:11:44]}
{[%emt 00:00:10]} 13. dxe4 {[%clk 01:06:01]} {[%emt 00:03:45]} e5 {[%clk
01:09:50]} {[%emt 00:02:25]} 14. Nb3 {[%clk 00:59:18]} {[%emt 00:07:12]} Qc7
{[%clk 01:06:08]} {[%emt 00:04:13]} 15. Be3 {[%clk 00:55:51]} {[%emt 00:03:56]}
a5 {[%clk 01:04:46]} {[%emt 00:01:53]} 16. a4 {[%clk 00:55:38]} {[%emt
00:00:43]} Rfd8 {[%clk 00:57:46]} {[%emt 00:07:29]} 17. Rfd1 {[%clk 00:53:43]}
{[%emt 00:02:24]} Nf8 {[%clk 00:56:26]} {[%emt 00:01:51]} 18. Rxd8 {[%clk
00:53:42]} {[%emt 00:00:30]} Rxd8 {[%clk 00:56:30]} {[%emt 00:00:27]} 19. Rd1
{[%clk 00:53:20]} {[%emt 00:00:52]} Ne6 {[%clk 00:56:05]} {[%emt 00:00:54]} 20.
Rxd8+ {[%clk 00:52:29]} {[%emt 00:01:21]} Bxd8 {[%clk 00:53:17]} {[%emt
00:03:19]} 21. f3 {[%clk 00:51:39]} {[%emt 00:01:19]} Nd7 {[%clk 00:50:57]}
{[%emt 00:02:50]} 22. Qd2 {[%clk 00:50:41]} {[%emt 00:01:28]} b5 {[%clk
00:40:07]} {[%emt 00:11:20]} 23. axb5 {[%clk 00:46:35]} {[%emt 00:04:36]} cxb5
{[%clk 00:40:29]} {[%emt 00:00:09]} 24. Bf1 {[%clk 00:46:38]} {[%emt 00:00:26]}
a4 {[%clk 00:35:18]} {[%emt 00:05:42]} 25. Nc1 {[%clk 00:45:41]} {[%emt
00:01:26]} Nd4 {[%clk 00:33:22]} {[%emt 00:02:27]} 26. Bxd4 {[%clk 00:39:00]}
{[%emt 00:07:10]} exd4 {[%clk 00:33:46]} {[%emt 00:00:07]} 27. Nd3 {[%clk
00:39:20]} {[%emt 00:00:10]} Be7 {[%clk 00:29:35]} {[%emt 00:04:41]} 28. f4
{[%clk 00:28:02]} {[%emt 00:11:48]} Qb6 {[%clk 00:23:41]} {[%emt 00:06:24]} 29.
e5 {[%clk 00:14:02]} {[%emt 00:14:29]} b4 {[%clk 00:23:03]} {[%emt 00:01:09]}
30. Bg2 {[%clk 00:12:38]} {[%emt 00:01:53]} a3 {[%clk 00:17:28]} {[%emt
00:06:06]} 31. Qc1 {[%clk 00:07:30]} {[%emt 00:05:37]} Qa5 {[%clk 00:13:53]}
{[%emt 00:04:06]} 32. Qa1 {[%clk 00:06:20]} {[%emt 00:01:39]} Nc5 {[%clk
00:13:19]} {[%emt 00:01:05]} 33. bxa3 {[%clk 00:00:38]} {[%emt 00:06:12]} Nxd3
{[%clk 00:11:54]} {[%emt 00:01:55]} 34. cxd3 {[%clk 00:01:05]} {[%emt
00:00:03]} bxa3 {[%clk 00:12:17]} {[%emt 00:00:07]} 35. Qa2 {[%clk 00:01:02]}
{[%emt 00:00:33]} Qe1+ {[%clk 00:11:06]} {[%emt 00:01:41]} 36. Kh2 {[%clk
00:01:30]} {[%emt 00:00:02]} Bh4 {[%clk 00:11:20]} {[%emt 00:00:16]} 37. Bd5
{[%clk 00:01:45]} {[%emt 00:00:15]} Qg3+ {[%clk 00:11:07]} {[%emt 00:00:43]} 38.
Kh1 {[%clk 00:02:11]} {[%emt 00:00:05]} Qxh3+ {[%clk 00:11:11]} {[%emt
00:00:26]} 39. Kg1 Qxg4+ 40. Kh1 {[%clk 00:02:50]} {[%emt 00:00:15]} Qxf4
{[%clk 00:09:36]} {[%emt 00:02:10]} 41. e6 {[%clk 00:01:37]} {[%emt 00:01:43]}
fxe6 {[%clk 00:04:53]} {[%emt 00:05:14]} 42. Bxe6+ {[%clk 00:02:01]} {[%emt
00:00:05]} Kh7 {[%clk 00:05:11]} {[%emt 00:00:07]} 0-1

[Event "Tournoi de MI Clichy 92 2022"]
[Site "Clichy, France"]
[Date "2022.02.21"]
[Round "2.5"]
[White "Decuigniere, Tom"]
[Black "Benmesbah, Natacha"]
[Result "1-0"]
[TimeControl "1H40 40 moves plus 30 minutes + 30 seconds from move one"]
[WhiteElo "2292"]
[BlackElo "2221"]

1. d4 {[%clk 01:30:58]} {[%emt 00:00:02]} d6 {[%clk 01:27:38]} {[%emt
00:03:23]} 2. c4 {[%clk 01:31:01]} {[%emt 00:00:26]} e5 {[%clk 01:28:03]}
{[%emt 00:00:06]} 3. e3 {[%clk 01:30:36]} {[%emt 00:00:54]} Nd7 {[%clk
01:27:45]} {[%emt 00:00:48]} 4. Nc3 {[%clk 01:30:04]} {[%emt 00:01:02]} g6
{[%clk 01:27:40]} {[%emt 00:00:35]} 5. g3 {[%clk 01:29:39]} {[%emt 00:00:55]}
Bg7 {[%clk 01:25:46]} {[%emt 00:02:23]} 6. Bg2 {[%clk 01:29:52]} {[%emt
00:00:17]} Ne7 {[%clk 01:22:57]} {[%emt 00:03:19]} 7. Nge2 {[%clk 01:29:52]}
{[%emt 00:00:30]} O-O {[%clk 01:20:41]} {[%emt 00:02:45]} 8. O-O {[%clk
01:30:08]} {[%emt 00:00:14]} exd4 {[%clk 01:13:48]} {[%emt 00:07:25]} 9. exd4
{[%clk 01:29:49]} {[%emt 00:00:49]} a6 {[%clk 01:11:07]} {[%emt 00:03:11]} 10.
b3 {[%clk 01:26:11]} {[%emt 00:04:08]} Rb8 {[%clk 01:04:19]} {[%emt 00:07:19]}
11. a4 {[%clk 01:24:27]} {[%emt 00:02:14]} a5 {[%clk 01:03:10]} {[%emt
00:01:39]} 12. Qd2 {[%clk 01:19:25]} {[%emt 00:05:32]} Nf5 {[%clk 00:58:10]}
{[%emt 00:05:29]} 13. Bb2 {[%clk 01:13:11]} {[%emt 00:06:44]} Nf6 {[%clk
00:55:15]} {[%emt 00:03:25]} 14. Rfe1 {[%clk 00:56:02]} {[%emt 00:17:39]} Bd7
{[%clk 00:53:23]} {[%emt 00:02:23]} 15. Rad1 {[%clk 00:47:14]} {[%emt
00:09:18]} Bc6 {[%clk 00:52:33]} {[%emt 00:01:20]} 16. d5 {[%clk 00:45:54]}
{[%emt 00:01:50]} Bd7 {[%clk 00:52:59]} {[%emt 00:00:05]} 17. Nb5 {[%clk
00:46:02]} {[%emt 00:00:21]} Bxb5 {[%clk 00:48:34]} {[%emt 00:04:54]} 18. cxb5
{[%clk 00:46:11]} {[%emt 00:00:20]} b6 {[%clk 00:48:13]} {[%emt 00:00:53]} 19.
Bh3 {[%clk 00:41:30]} {[%emt 00:05:10]} Ne4 {[%clk 00:34:21]} {[%emt 00:14:22]}
20. Qc2 {[%clk 00:40:57]} {[%emt 00:01:03]} Ng5 {[%clk 00:32:21]} {[%emt
00:02:30]} 21. Bg2 {[%clk 00:40:10]} {[%emt 00:01:16]} Bxb2 {[%clk 00:30:17]}
{[%emt 00:02:36]} 22. Qxb2 {[%clk 00:40:34]} {[%emt 00:00:05]} Re8 {[%clk
00:27:26]} {[%emt 00:03:21]} 23. Nf4 {[%clk 00:36:47]} {[%emt 00:04:17]} h5
{[%clk 00:25:30]} {[%emt 00:02:27]} 24. Rxe8+ {[%clk 00:36:05]} {[%emt
00:01:12]} Qxe8 {[%clk 00:25:39]} {[%emt 00:00:21]} 25. Nxh5 {[%clk 00:34:05]}
{[%emt 00:02:30]} Nh7 {[%clk 00:21:26]} {[%emt 00:04:43]} 26. Nf4 {[%clk
00:32:53]} {[%emt 00:01:42]} Qe5 {[%clk 00:21:26]} {[%emt 00:00:30]} 27. Qxe5
{[%clk 00:31:15]} {[%emt 00:02:08]} dxe5 {[%clk 00:21:53]} {[%emt 00:00:04]} 28.
Nd3 {[%clk 00:31:41]} {[%emt 00:00:04]} f6 {[%clk 00:21:45]} {[%emt 00:00:38]}
29. Rc1 {[%clk 00:32:01]} {[%emt 00:00:11]} Rc8 {[%clk 00:21:22]} {[%emt
00:00:53]} 30. Bh3 {[%clk 00:31:05]} {[%emt 00:01:25]} Kf7 {[%clk 00:20:13]}
{[%emt 00:01:38]} 31. Bxf5 {[%clk 00:31:08]} {[%emt 00:00:27]} gxf5 {[%clk
00:20:39]} {[%emt 00:00:04]} 32. d6 {[%clk 00:31:32]} {[%emt 00:00:05]} Ke6
{[%clk 00:21:05]} {[%emt 00:00:05]} 33. dxc7 {[%clk 00:31:05]} {[%emt
00:00:58]} Kd7 {[%clk 00:21:29]} {[%emt 00:00:05]} 34. b4 {[%clk 00:30:23]}
{[%emt 00:01:12]} axb4 {[%clk 00:20:01]} {[%emt 00:01:58]} 35. Nxb4 {[%clk
00:30:46]} {[%emt 00:00:06]} Rxc7 {[%clk 00:20:23]} {[%emt 00:00:09]} 36. Rxc7+
{[%clk 00:31:11]} {[%emt 00:00:05]} Kxc7 {[%clk 00:20:50]} {[%emt 00:00:03]} 37.
Nd5+ {[%clk 00:31:37]} {[%emt 00:00:05]} Kb7 {[%clk 00:21:03]} {[%emt
00:00:17]} 38. h4 {[%clk 00:32:00]} {[%emt 00:00:07]} 1-0